[Event "Asian Academies Hybrid Chess-ch 2021"]
[Site "Tornelo"]
[Date "2021.11.21"]
[Round "6.4"]
[White "Amarathunga, Kosala Sandeepa Cham"]
[Black "Babaei, Amir Hossein"]
[Result "0-1"]
[ECO "B19"]
[WhiteElo "1353"]
[BlackElo "1286"]
[Annotator "NA RC"]
[PlyCount "114"]
[EventDate "2021.11.21"]
[EventCountry "NET"]
[SourceTitle "playchess.com"]
[Source "ChessBase"]
[SourceQuality "1"]
[TimeControl "3600+30"]

1. e4 {[%emt 0:00:30]} c6 {[%emt 0:03:21]} 2. d4 {[%emt 0:02:15]} d5 {[%emt 0:00:08]} 3. Nc3 {[%emt 0:01:06]} dxe4 {[%emt 0:04:03]} 4. Nxe4 {[%emt 0:01:36]} Bf5 {[%emt 0:00:10]} 5. Ng3 {[%emt 0:00:58]} Bg6 {[%emt 0:00:06]} 6. h4 {[%emt 0:03:39]} h6 {[%emt 0:00:05]} 7. Nf3 {[%emt 0:03:59]} Nd7 {[%emt 0:00:15]} 8. Bd3 {[%emt 0:03:34]} Bxd3 {[%emt 0:00:08]} 9. Qxd3 {[%emt 0:00:25]} Qc7 {[%emt 0:02:21]} 10. Bd2 {[%emt 0:01:11]} O-O-O {[%emt 0:01:42]} 11. O-O-O {[%emt 0:02:10]} e6 {[%emt 0:03:09]} 12. Rhe1 {[%emt 0:14:12]} Kb8 {[%emt 0:02:29]} 13. Kb1 {[%emt 0:03:09]} a6 {[%emt 0:02:27]} 14. Qb3 {[%emt 0:01:45]} Ngf6 {[%emt 0:02:40]} 15. c4 {[%emt 0:04:20]} Be7 {[%emt 0:03:23]} 16. Bc3 {[%emt 0:02:13]} Ng4 {[%emt 0:01:38]} 17. Qc2 {[%emt 0:03:45]} Rhe8 {[%emt 0:03:03]} 18. c5 {[%emt 0:09:18]} g6 {[%emt 0:03:32]} 19. Ne4 {[%emt 0:01:57]} Qf4 {[%emt 0:02:20]} 20. Rd3 {[%emt 0:01:48]} Ndf6 {[%emt 0:02:09]} 21. Nxf6 {[%emt 0:04:54]} Bxf6 {[%emt 0:00:37]} 22. g3 {[%emt 0:00:53]} Qf5 {[%emt 0:02:08]} 23. Re2 {[%emt 0:01:46]} e5 {[%emt 0:00:56]} 24. Ne1 {[%emt 0:00:34]} exd4 {[%emt 0:01:54]} 25. Bd2 {[%emt 0:00:21]} Rxe2 {[%emt 0:00:52]} 26. Bf4+ {[%emt 0:00:04]} Qxf4 {[%emt 0:00:27]} 27. Qxe2 {[%emt 0:00:30]} Qxf2 {[%emt 0:00:29]} 28. Qxg4 {[%emt 0:00:12]} Qxe1+ {[%emt 0:00:09]} 29. Rd1 {[%emt 0:00:05]} Qe5 {[%emt 0:00:46]} 30. Rd3 {[%emt 0:00:30]} Re8 {[%emt 0:00:34]} 31. a3 {[%emt 0:00:43]} Qf5 {[%emt 0:01:53]} 32. Qd1 {[%emt 0:00:18]} Re3 {[%emt 0:00:19]} 33. Kc2 {[%emt 0:00:19]} Qxd3+ {[%emt 0:01:28]} 34. Qxd3 {[%emt 0:00:07]} Rxd3 {[%emt 0:00:05]} 35. Kxd3 {[%emt 0:00:02]} Kc7 {[%emt 0:03:21]} 36. b4 {[%emt 0:00:05]} Kd7 {[%emt 0:02:46]} 37. Ke4 {[%emt 0:00:11]} Ke6 {[%emt 0:00:08]} 38. a4 {[%emt 0:00:09]} h5 {[%emt 0:00:14]} 39. a5 {[%emt 0:00:18]} Be5 {[%emt 0:00:12]} 40. Kf3 {[%emt 0:00:16]} Kd5 {[%emt 0:00:06]} 41. g4 {[%emt 0:00:01]} d3 {[%emt 0:00:12]} 42. gxh5 {[%emt 0:00:14]} gxh5 {[%emt 0:00:06]} 43. Ke3 {[%emt 0:00:02]} Kc4 {[%emt 0:00:08]} 44. Ke4 {[%emt 0:00:02]} d2 {[%emt 0:00:06]} 45. Kxe5 {[%emt 0:00:02]} d1=Q {[%emt 0:00:07]} 46. Kf6 {[%emt 0:00:02]} Qf3+ {[%emt 0:00:09]} 47. Ke7 {[%emt 0:00:03]} Qd3 {[%emt 0:00:18]} 48. Kxf7 {[%emt 0:00:09]} Qd4 {[%emt 0:00:09]} 49. Ke7 {[%emt 0:00:04]} Kxb4 {[%emt 0:00:20]} 50. Kf7 {[%emt 0:00:09]} Qxh4 {[%emt 0:00:05]} 51. Ke8 {[%emt 0:00:04]} Qd4 {[%emt 0:00:06]} 52. Kf7 {[%emt 0:00:02]} h4 {[%emt 0:00:04]} 53. Ke6 {[%emt 0:00:03]} h3 {[%emt 0:00:05]} 54. Kf5 {[%emt 0:00:02]} h2 {[%emt 0:00:10]} 55. Kg6 {[%emt 0:00:02]} Qf2 {[%emt 0:00:08]} 56. Kg5 {[%emt 0:00:04]} h1=R {[%emt 0:00:07]} 57. Kg6 {[%emt 0:00:04]} Rg1+ {[%emt 0:00:06]} 0-1

[Event "Asian Academies Hybrid Chess-ch 2021"]
[Site "Tornelo"]
[Date "2021.11.21"]
[Round "6.4"]
[White "Gholizadeh, Romina"]
[Black "Indrajith, J A K N T"]
[Result "0-1"]
[ECO "A85"]
[WhiteElo "1254"]
[BlackElo "1359"]
[Annotator "NA RC"]
[PlyCount "152"]
[EventDate "2021.11.21"]
[EventCountry "NET"]
[SourceTitle "playchess.com"]
[Source "ChessBase"]
[SourceQuality "1"]
[TimeControl "3600+30"]

1. d4 {[%emt 0:10:34]} d5 {[%emt 0:00:35]} 2. Nf3 {[%emt 0:00:24]} e6 {[%emt 0:00:05]} 3. e3 {[%emt 0:00:11]} Bd6 {[%emt 0:00:19]} 4. Bd3 {[%emt 0:00:48]} f5 {[%emt 0:00:10]} 5. Ne5 {[%emt 0:00:06]} Nf6 {[%emt 0:00:07]} 6. O-O {[%emt 0:00:14]} O-O {[%emt 0:00:09]} 7. c4 {[%emt 0:02:18]} c6 {[%emt 0:00:10]} 8. Nc3 {[%emt 0:00:24]} Nbd7 {[%emt 0:00:10]} 9. f4 {[%emt 0:00:21]} Ne4 {[%emt 0:01:00]} 10. Qb3 {[%emt 0:03:14]} Ndf6 {[%emt 0:04:15]} 11. Qd1 {[%emt 0:05:11]} Bd7 {[%emt 0:04:15]} 12. Bd2 {[%emt 0:01:46]} Be8 {[%emt 0:00:41]} 13. Rc1 {[%emt 0:01:34]} Bh5 {[%emt 0:00:22]} 14. Be2 {[%emt 0:00:05]} Bxe2 {[%emt 0:02:55]} 15. Qxe2 {[%emt 0:00:28]} Bxe5 {[%emt 0:00:23]} 16. fxe5 {[%emt 0:06:42]} Nxd2 {[%emt 0:02:36]} 17. Qxd2 {[%emt 0:00:24]} Ng4 {[%emt 0:00:17]} 18. h3 {[%emt 0:01:14]} Nh6 {[%emt 0:00:21]} 19. cxd5 {[%emt 0:00:22]} exd5 {[%emt 0:00:10]} 20. Na4 {[%emt 0:01:40]} Nf7 {[%emt 0:00:29]} 21. Rxf5 {[%emt 0:01:36]} Ng5 {[%emt 0:01:30]} 22. Rxf8+ {[%emt 0:00:32]} Qxf8 {[%emt 0:00:10]} 23. Rf1 {[%emt 0:00:08]} Qe7 {[%emt 0:00:07]} 24. Nc5 {[%emt 0:00:44]} b6 {[%emt 0:00:14]} 25. Nd3 {[%emt 0:00:18]} Ne4 {[%emt 0:00:12]} 26. Qc2 {[%emt 0:00:23]} Qg5 {[%emt 0:00:14]} 27. Rf3 {[%emt 0:04:23]} Qg6 {[%emt 0:00:40]} 28. Nf4 {[%emt 0:01:06]} Qh6 {[%emt 0:02:18]} 29. e6 {[%emt 0:10:24]} Ng5 {[%emt 0:02:01]} 30. Rf1 {[%emt 0:01:06]} Rc8 {[%emt 0:00:35]} 31. Qf5 {[%emt 0:02:08]} Re8 {[%emt 0:00:11]} 32. e7 {[%emt 0:01:47]} Qf6 {[%emt 0:11:16]} 33. Qxf6 {[%emt 0:00:12]} gxf6 {[%emt 0:00:10]} 34. Nh5 {[%emt 0:00:35]} Rxe7 {[%emt 0:00:16]} 35. Nxf6+ {[%emt 0:00:04]} Kg7 {[%emt 0:00:10]} 36. Ng4 {[%emt 0:01:26]} Ne4 {[%emt 0:01:03]} 37. Ne5 {[%emt 0:02:15]} c5 {[%emt 0:00:28]} 38. Rd1 {[%emt 0:01:37]} Ng3 {[%emt 0:01:09]} 39. Kf2 {[%emt 0:01:15]} Nf5 {[%emt 0:00:15]} 40. g4 {[%emt 0:00:11]} Nd6 {[%emt 0:00:46]} 41. Ke2 {[%emt 0:02:03]} cxd4 {[%emt 0:01:42]} 42. exd4 {[%emt 0:00:16]} Nc4 {[%emt 0:00:21]} 43. Kf3 {[%emt 0:00:42]} Nxb2 {[%emt 0:00:23]} 44. Rd2 {[%emt 0:02:02]} Nc4 {[%emt 0:02:04]} 45. Nxc4 {[%emt 0:00:15]} dxc4 {[%emt 0:00:08]} 46. Rc2 {[%emt 0:01:03]} b5 {[%emt 0:00:10]} 47. a4 {[%emt 0:00:13]} a6 {[%emt 0:00:08]} 48. axb5 {[%emt 0:00:31]} axb5 {[%emt 0:00:06]} 49. d5 {[%emt 0:01:07]} Kf6 {[%emt 0:00:19]} 50. Kf4 {[%emt 0:00:25]} Rd7 {[%emt 0:00:07]} 51. Ke4 {[%emt 0:00:16]} Rc7 {[%emt 0:02:14]} 52. d6 {[%emt 0:02:26]} Rc8 {[%emt 0:02:16]} 53. Kd5 {[%emt 0:00:18]} c3 {[%emt 0:00:24]} 54. d7 {[%emt 0:01:56]} Rd8 {[%emt 0:00:20]} 55. Kc6 {[%emt 0:00:11]} b4 {[%emt 0:06:30]} 56. Kc7 {[%emt 0:00:29]} Rxd7+ {[%emt 0:00:49]} 57. Kxd7 {[%emt 0:00:03]} Ke5 {[%emt 0:00:07]} 58. Kc6 {[%emt 0:01:43]} Kd4 {[%emt 0:00:09]} 59. Kb5 {[%emt 0:00:34]} b3 {[%emt 0:00:06]} 60. Rc1 {[%emt 0:00:11]} b2 {[%emt 0:00:20]} 61. Rb1 {[%emt 0:01:06]} c2 {[%emt 0:01:46]} 62. Rxb2 {[%emt 0:00:05]} c1=Q {[%emt 0:00:14]} 63. Rb4+ {[%emt 0:00:04]} Ke5 {[%emt 0:00:11]} 64. h4 {[%emt 0:01:04]} Qf1+ {[%emt 0:00:22]} 65. Kc5 {[%emt 0:00:31]} Qf2+ {[%emt 0:00:08]} 66. Kc6 {[%emt 0:00:14]} Qxh4 {[%emt 0:00:12]} 67. Rb5+ {[%emt 0:00:14]} Kf4 {[%emt 0:00:06]} 68. Rb4+ {[%emt 0:00:53]} Kg5 {[%emt 0:00:14]} 69. Rb5+ {[%emt 0:00:36]} Kg6 {[%emt 0:00:10]} 70. g5 {[%emt 0:00:25]} Qxg5 {[%emt 0:02:00]} 71. Rxg5+ {[%emt 0:00:10]} Kxg5 {[%emt 0:00:08]} 72. Kd5 {[%emt 0:00:03]} h5 {[%emt 0:00:12]} 73. Ke4 {[%emt 0:00:03]} Kg4 {[%emt 0:00:09]} 74. Ke3 {[%emt 0:00:02]} Kg3 {[%emt 0:00:08]} 75. Ke2 {[%emt 0:00:29]} Kg2 {[%emt 0:00:07]} 76. Ke3 {[%emt 0:00:04]} h4 {[%emt 0:00:08]} 0-1

[Event "Asian Academies Hybrid Chess-ch 2021"]
[Site "Tornelo"]
[Date "2021.11.21"]
[Round "6.4"]
[White "Newansa, M Esandi"]
[Black "Dashtpeima, Helia"]
[Result "0-1"]
[ECO "D00"]
[WhiteElo "1121"]
[BlackElo "1278"]
[Annotator "NA RC"]
[PlyCount "116"]
[EventDate "2021.11.21"]
[EventCountry "NET"]
[SourceTitle "playchess.com"]
[Source "ChessBase"]
[SourceQuality "1"]
[TimeControl "3600+30"]

1. d4 {[%emt 0:00:30]} d5 {[%emt 0:04:06]} 2. Bf4 {[%emt 0:00:09]} Nf6 {[%emt 0:00:19]} 3. e3 {[%emt 0:00:12]} e6 {[%emt 0:00:10]} 4. c3 {[%emt 0:00:13]} Bd6 {[%emt 0:00:05]} 5. Bg3 {[%emt 0:00:22]} O-O {[%emt 0:00:08]} 6. Nd2 {[%emt 0:00:08]} Re8 {[%emt 0:00:10]} 7. Ngf3 {[%emt 0:00:18]} Nbd7 {[%emt 0:00:15]} 8. Bd3 {[%emt 0:01:24]} e5 {[%emt 0:03:38]} 9. dxe5 {[%emt 0:00:46]} Nxe5 {[%emt 0:00:05]} 10. Nxe5 {[%emt 0:00:15]} Bxe5 {[%emt 0:00:05]} 11. Qc2 {[%emt 0:02:08]} h6 {[%emt 0:00:19]} 12. Nf3 {[%emt 0:00:48]} Bd6 {[%emt 0:00:47]} 13. O-O {[%emt 0:02:40]} c6 {[%emt 0:01:58]} 14. Rad1 {[%emt 0:00:44]} Bg4 {[%emt 0:02:26]} 15. Be2 {[%emt 0:00:13]} Bxg3 {[%emt 0:02:31]} 16. hxg3 {[%emt 0:00:10]} Rc8 {[%emt 0:03:27]} 17. Qa4 {[%emt 0:02:49]} a6 {[%emt 0:01:43]} 18. c4 {[%emt 0:01:27]} b5 {[%emt 0:02:35]} 19. Qxa6 {[%emt 0:04:31]} bxc4 {[%emt 0:03:08]} 20. Bxc4 {[%emt 0:03:03]} Ra8 {[%emt 0:02:44]} 21. Qb7 {[%emt 0:00:28]} Qd6 {[%emt 0:02:01]} 22. Qb6 {[%emt 0:00:24]} Ne4 {[%emt 0:01:37]} 23. Bb3 {[%emt 0:01:00]} Reb8 {[%emt 0:02:43]} 24. Qd4 {[%emt 0:00:31]} Rb4 {[%emt 0:02:09]} 25. Qd3 {[%emt 0:00:37]} Bxf3 {[%emt 0:02:26]} 26. gxf3 {[%emt 0:01:22]} Nxg3 {[%emt 0:01:29]} 27. Rfe1 {[%emt 0:04:26]} Rh4 {[%emt 0:02:16]} 28. f4 {[%emt 0:02:13]} Nh5 {[%emt 0:02:20]} 29. Qf5 {[%emt 0:01:14]} g6 {[%emt 0:02:21]} 30. Qe5 {[%emt 0:00:26]} Qd7 {[%emt 0:01:30]} 31. Qe4 {[%emt 0:07:56]} Qh3 {[%emt 0:00:45]} 32. Qg2 {[%emt 0:03:16]} Rg4 {[%emt 0:00:06]} 33. Qxg4 {[%emt 0:00:13]} Qxg4+ {[%emt 0:00:05]} 34. Kf1 {[%emt 0:00:08]} Qf3 {[%emt 0:00:20]} 35. Kg1 {[%emt 0:00:41]} Nf6 {[%emt 0:01:51]} 36. Rc1 {[%emt 0:00:41]} Ne4 {[%emt 0:00:35]} 37. Rc2 {[%emt 0:00:10]} h5 {[%emt 0:00:13]} 38. Kh2 {[%emt 0:00:21]} Nxf2 {[%emt 0:01:28]} 39. Rd2 {[%emt 0:00:40]} h4 {[%emt 0:00:57]} 40. Rxf2 {[%emt 0:00:45]} Qxf2+ {[%emt 0:00:06]} 41. Kh1 {[%emt 0:00:05]} Qxe1+ {[%emt 0:00:03]} 42. Kh2 {[%emt 0:00:02]} Qxe3 {[%emt 0:00:04]} 43. Kg2 {[%emt 0:00:03]} Qxf4 {[%emt 0:00:04]} 44. Kg1 {[%emt 0:00:08]} Qc1+ {[%emt 0:00:04]} 45. Kh2 {[%emt 0:00:08]} Qxb2+ {[%emt 0:00:03]} 46. Kg1 {[%emt 0:00:08]} d4 {[%emt 0:00:02]} 47. Kf1 {[%emt 0:00:03]} d3 {[%emt 0:00:02]} 48. Kg1 {[%emt 0:00:04]} d2 {[%emt 0:00:04]} 49. Kf1 {[%emt 0:00:06]} Rxa2 {[%emt 0:00:04]} 50. Bd1 {[%emt 0:00:12]} Ra1 {[%emt 0:00:12]} 51. Ke2 {[%emt 0:00:03]} Rxd1 {[%emt 0:00:03]} 52. Kxd1 {[%emt 0:00:03]} Qc1+ {[%emt 0:00:03]} 53. Ke2 {[%emt 0:00:10]} d1=Q+ {[%emt 0:00:03]} 54. Kf2 {[%emt 0:00:03]} Qcc2+ {[%emt 0:00:17]} 55. Ke3 {[%emt 0:00:03]} Qdd3+ {[%emt 0:00:02]} 56. Kf4 {[%emt 0:00:03]} Qcc4+ {[%emt 0:00:02]} 57. Kg5 {[%emt 0:00:02]} Qf5+ {[%emt 0:00:05]} 58. Kh6 {[%emt 0:00:03]} Qc1# {[%emt 0:00:03]} 0-1

[Event "Asian Academies Hybrid Chess-ch 2021"]
[Site "Tornelo"]
[Date "2021.11.21"]
[Round "7.1"]
[White "Dashtpeima, Helia"]
[Black "Shadat, Kibria Ayaan"]
[Result "1-0"]
[ECO "D00"]
[WhiteElo "1278"]
[BlackElo "1623"]
[Annotator "NA RC"]
[PlyCount "75"]
[EventDate "2021.11.21"]
[EventCountry "NET"]
[SourceTitle "playchess.com"]
[Source "ChessBase"]
[SourceQuality "1"]
[TimeControl "3600+30"]

1. d4 {[%emt 0:00:30]} d5 {[%emt 0:00:43]} 2. Nf3 {[%emt 0:00:04]} Nf6 {[%emt 0:00:03]} 3. e3 {[%emt 0:00:04]} e6 {[%emt 0:00:02]} 4. Bd3 {[%emt 0:00:04]} Bd6 {[%emt 0:00:59]} 5. Ne5 {[%emt 0:00:09]} O-O {[%emt 0:02:56]} 6. Nd2 {[%emt 0:00:20]} c5 {[%emt 0:00:31]} 7. c3 {[%emt 0:00:06]} Nc6 {[%emt 0:00:23]} 8. f4 {[%emt 0:00:09]} cxd4 {[%emt 0:03:46]} 9. exd4 {[%emt 0:00:58]} Ne7 {[%emt 0:15:45]} 10. O-O {[%emt 0:00:36]} Ng6 {[%emt 0:02:06]} 11. Qf3 {[%emt 0:00:48]} Nd7 {[%emt 0:06:28]} 12. Qg3 {[%emt 0:03:15]} Qh4 {[%emt 0:03:46]} 13. Qe3 {[%emt 0:03:37]} Re8 {[%emt 0:01:57]} 14. Ndf3 {[%emt 0:01:27]} Qe7 {[%emt 0:01:06]} 15. Ng5 {[%emt 0:02:45]} f5 {[%emt 0:04:33]} 16. Nxg6 {[%emt 0:02:08]} hxg6 {[%emt 0:00:16]} 17. Re1 {[%emt 0:01:40]} Nf6 {[%emt 0:00:22]} 18. Bb5 {[%emt 0:00:40]} Bd7 {[%emt 0:01:11]} 19. Bxd7 {[%emt 0:01:42]} Qxd7 {[%emt 0:00:16]} 20. Qh3 {[%emt 0:01:25]} b5 {[%emt 0:04:44]} 21. a3 {[%emt 0:01:15]} a5 {[%emt 0:00:38]} 22. Bd2 {[%emt 0:01:16]} Rac8 {[%emt 0:01:46]} 23. g3 {[%emt 0:01:51]} Rb8 {[%emt 0:06:58]} 24. Re2 {[%emt 0:00:52]} Rb6 {[%emt 0:01:08]} 25. Rae1 {[%emt 0:01:22]} Bb8 {[%emt 0:00:54]} 26. Qh4 {[%emt 0:01:22]} Rc6 {[%emt 0:05:04]} 27. Kg2 {[%emt 0:01:31]} Bc7 {[%emt 0:00:42]} 28. Be3 {[%emt 0:00:57]} Bd8 {[%emt 0:02:01]} 29. Qh3 {[%emt 0:01:03]} Kf8 {[%emt 0:02:08]} 30. Qh8+ {[%emt 0:01:30]} Ng8 {[%emt 0:00:10]} 31. Nf3 {[%emt 0:01:09]} Bf6 {[%emt 0:00:52]} 32. g4 {[%emt 0:01:08]} fxg4 {[%emt 0:01:41]} 33. Ne5 {[%emt 0:01:04]} Bxe5 {[%emt 0:00:14]} 34. fxe5 {[%emt 0:00:34]} Kf7 {[%emt 0:00:48]} 35. Rf1+ {[%emt 0:00:47]} Ke7 {[%emt 0:00:27]} 36. Bg5+ {[%emt 0:01:07]} Nf6 {[%emt 0:00:10]} 37. Bxf6+ {[%emt 0:00:35]} gxf6 {[%emt 0:00:07]} 38. Qxf6# {[%emt 0:00:04]} 1-0

[Event "Asian Academies Hybrid Chess-ch 2021"]
[Site "Tornelo"]
[Date "2021.11.21"]
[Round "7.2"]
[White "Indrajith, J A K N T"]
[Black "Mohammadi, Maryam"]
[Result "0-1"]
[ECO "D05"]
[WhiteElo "1359"]
[BlackElo "1163"]
[Annotator "NA RC"]
[PlyCount "102"]
[EventDate "2021.11.21"]
[EventCountry "NET"]
[SourceTitle "playchess.com"]
[Source "ChessBase"]
[SourceQuality "1"]
[TimeControl "3600+30"]

1. d4 {[%emt 0:07:32]} d5 {[%emt 0:01:15]} 2. e3 {[%emt 0:00:02]} Nf6 {[%emt 0:00:48]} 3. Nf3 {[%emt 0:00:04]} e6 {[%emt 0:00:55]} 4. Bd3 {[%emt 0:00:03]} c5 {[%emt 0:00:40]} 5. c3 {[%emt 0:00:04]} Bd6 {[%emt 0:00:44]} 6. Nbd2 {[%emt 0:00:04]} Nc6 {[%emt 0:00:41]} 7. O-O {[%emt 0:00:13]} O-O {[%emt 0:01:47]} 8. Qe2 {[%emt 0:00:14]} c4 {[%emt 0:02:09]} 9. Bc2 {[%emt 0:00:05]} Be7 {[%emt 0:01:16]} 10. e4 {[%emt 0:00:04]} Ng4 {[%emt 0:01:32]} 11. h3 {[%emt 0:00:08]} Nf6 {[%emt 0:01:07]} 12. Re1 {[%emt 0:00:09]} Qc7 {[%emt 0:08:06]} 13. e5 {[%emt 0:00:26]} Nd7 {[%emt 0:00:37]} 14. Nf1 {[%emt 0:00:15]} b5 {[%emt 0:00:57]} 15. Bg5 {[%emt 0:00:39]} f5 {[%emt 0:02:16]} 16. exf6 {[%emt 0:00:14]} Nxf6 {[%emt 0:01:47]} 17. Bxf6 {[%emt 0:00:06]} Bxf6 {[%emt 0:00:46]} 18. Ng3 {[%emt 0:00:09]} a5 {[%emt 0:00:31]} 19. Nh5 {[%emt 0:00:11]} Bd8 {[%emt 0:00:54]} 20. Qe3 {[%emt 0:01:44]} g6 {[%emt 0:01:08]} 21. Ng3 {[%emt 0:00:17]} Qf4 {[%emt 0:01:16]} 22. Qxf4 {[%emt 0:06:06]} Rxf4 {[%emt 0:00:17]} 23. Re2 {[%emt 0:00:09]} Bc7 {[%emt 0:00:57]} 24. Rae1 {[%emt 0:00:21]} Bd7 {[%emt 0:00:05]} 25. Ng5 {[%emt 0:00:16]} Nd8 {[%emt 0:00:42]} 26. Nf1 {[%emt 0:02:09]} Kg7 {[%emt 0:00:24]} 27. Ne3 {[%emt 0:00:52]} Nf7 {[%emt 0:00:43]} 28. g3 {[%emt 0:00:41]} Nxg5 {[%emt 0:00:32]} 29. gxf4 {[%emt 0:00:07]} Nf3+ {[%emt 0:00:08]} 30. Kg2 {[%emt 0:00:39]} Nxe1+ {[%emt 0:00:06]} 31. Rxe1 {[%emt 0:00:11]} Bxf4 {[%emt 0:00:05]} 32. Nxd5 {[%emt 0:00:15]} Bc6 {[%emt 0:00:55]} 33. Be4 {[%emt 0:01:55]} Bxd5 {[%emt 0:00:14]} 34. Bxd5 {[%emt 0:00:09]} exd5 {[%emt 0:00:04]} 35. Kf3 {[%emt 0:00:13]} Rf8 {[%emt 0:00:19]} 36. Kg2 {[%emt 0:00:21]} Bd6 {[%emt 0:00:25]} 37. Re6 {[%emt 0:00:11]} Rf6 {[%emt 0:00:10]} 38. Re8 {[%emt 0:00:09]} b4 {[%emt 0:00:14]} 39. Ra8 {[%emt 0:00:17]} bxc3 {[%emt 0:00:18]} 40. bxc3 {[%emt 0:00:09]} Bf4 {[%emt 0:00:20]} 41. Rxa5 {[%emt 0:00:09]} Rf5 {[%emt 0:00:37]} 42. Ra8 {[%emt 0:00:39]} Bd2 {[%emt 0:00:11]} 43. Ra3 {[%emt 0:00:18]} Bc1 {[%emt 0:00:46]} 44. Ra7+ {[%emt 0:00:14]} Kh6 {[%emt 0:00:31]} 45. a4 {[%emt 0:07:58]} Bb2 {[%emt 0:02:41]} 46. f3 {[%emt 0:01:12]} Bxc3 {[%emt 0:01:55]} 47. a5 {[%emt 0:00:09]} Rg5+ {[%emt 0:00:29]} 48. Kf1 {[%emt 0:00:16]} Bxd4 {[%emt 0:00:22]} 49. Rd7 {[%emt 0:00:33]} c3 {[%emt 0:01:13]} 50. Ke2 {[%emt 0:00:26]} Rg2+ {[%emt 0:00:34]} 51. Kd3 {[%emt 0:00:09]} Rd2# {[%emt 0:00:16]} 0-1

[Event "Asian Academies Hybrid Chess-ch 2021"]
[Site "Tornelo"]
[Date "2021.11.21"]
[Round "7.4"]
[White "Khaled waleed Abdullah"]
[Black "Zaeef Maheen, Chowdhury"]
[Result "1-0"]
[ECO "B33"]
[WhiteElo "1568"]
[BlackElo "1417"]
[Annotator "NA RC"]
[PlyCount "49"]
[EventDate "2021.11.21"]
[EventCountry "NET"]
[SourceTitle "playchess.com"]
[Source "ChessBase"]
[SourceQuality "1"]
[TimeControl "3600+30"]

1. e4 {[%emt 0:00:30]} c5 {[%emt 0:00:33]} 2. Nf3 {[%emt 0:00:07]} Nc6 {[%emt 0:00:08]} 3. d4 {[%emt 0:00:13]} cxd4 {[%emt 0:00:11]} 4. Nxd4 {[%emt 0:00:02]} Nf6 {[%emt 0:00:03]} 5. Nc3 {[%emt 0:00:04]} e5 {[%emt 0:00:04]} 6. Ndb5 {[%emt 0:00:04]} d6 {[%emt 0:00:02]} 7. Bg5 {[%emt 0:00:07]} a6 {[%emt 0:00:02]} 8. Na3 {[%emt 0:00:02]} b5 {[%emt 0:00:04]} 9. Nd5 {[%emt 0:00:02]} Be7 {[%emt 0:00:03]} 10. Bxf6 {[%emt 0:00:04]} Bxf6 {[%emt 0:00:04]} 11. c3 {[%emt 0:00:03]} Be6 {[%emt 0:00:43]} 12. Nc2 {[%emt 0:03:23]} Bg5 {[%emt 0:08:46]} 13. a4 {[%emt 0:00:53]} Rb8 {[%emt 0:05:37]} 14. axb5 {[%emt 0:02:59]} axb5 {[%emt 0:03:19]} 15. Be2 {[%emt 0:04:18]} O-O {[%emt 0:00:57]} 16. O-O {[%emt 0:00:42]} Na5 {[%emt 0:02:25]} 17. Ncb4 {[%emt 0:02:16]} Bxd5 {[%emt 0:02:37]} 18. Qxd5 {[%emt 0:01:40]} Rc8 {[%emt 0:05:03]} 19. Rfd1 {[%emt 0:07:10]} Nc4 {[%emt 0:03:03]} 20. Qxb5 {[%emt 0:13:51]} Nxb2 {[%emt 0:00:44]} 21. Rdb1 {[%emt 0:00:23]} Rc5 {[%emt 0:02:42]} 22. Qa6 {[%emt 0:00:37]} Bd2 {[%emt 0:02:20]} 23. Nd5 {[%emt 0:05:16]} Qb8 {[%emt 0:03:34]} 24. Qa2 {[%emt 0:02:26]} Rxd5 {[%emt 0:01:18]} 25. Rxb2 {[%emt 0:00:38]} 1-0

[Event "Asian Academies Hybrid Chess-ch 2021"]
[Site "Tornelo"]
[Date "2021.11.21"]
[Round "7.4"]
[White "Kazi Afsan Rawnak, Anan"]
[Black "Husam Al-Dain Abdulhakim Nashe"]
[Result "1-0"]
[ECO "B01"]
[WhiteElo "1410"]
[BlackElo "1342"]
[Annotator "NA RC"]
[PlyCount "57"]
[EventDate "2021.11.21"]
[EventCountry "NET"]
[SourceTitle "playchess.com"]
[Source "ChessBase"]
[SourceQuality "1"]
[TimeControl "3600+30"]

1. e4 {[%emt 0:00:30]} d5 {[%emt 0:01:53]} 2. exd5 {[%emt 0:00:27]} Qxd5 {[%emt 0:00:09]} 3. Nc3 {[%emt 0:00:14]} Qa5 {[%emt 0:00:15]} 4. d4 {[%emt 0:00:13]} c6 {[%emt 0:00:56]} 5. Bd2 {[%emt 0:00:10]} Qc7 {[%emt 0:00:22]} 6. Bd3 {[%emt 0:01:04]} Nf6 {[%emt 0:02:35]} 7. Nf3 {[%emt 0:01:17]} Bg4 {[%emt 0:02:01]} 8. h3 {[%emt 0:01:48]} Bh5 {[%emt 0:00:15]} 9. Qe2 {[%emt 0:01:22]} e6 {[%emt 0:03:49]} 10. g4 {[%emt 0:04:03]} Bg6 {[%emt 0:00:27]} 11. Ne5 {[%emt 0:01:31]} Bxd3 {[%emt 0:01:52]} 12. Qxd3 {[%emt 0:01:16]} Nbd7 {[%emt 0:02:28]} 13. f4 {[%emt 0:05:56]} Bd6 {[%emt 0:10:03]} 14. Ne4 {[%emt 0:05:34]} Nxe4 {[%emt 0:02:41]} 15. Qxe4 {[%emt 0:01:00]} Nf6 {[%emt 0:00:26]} 16. Qd3 {[%emt 0:06:39]} O-O-O {[%emt 0:02:54]} 17. O-O-O {[%emt 0:06:37]} Nd5 {[%emt 0:05:08]} 18. c4 {[%emt 0:05:15]} Nb4 {[%emt 0:08:42]} 19. Qb3 {[%emt 0:06:16]} Na6 {[%emt 0:00:35]} 20. Be3 {[%emt 0:00:55]} Rhe8 {[%emt 0:04:05]} 21. c5 {[%emt 0:00:49]} Bxe5 {[%emt 0:01:18]} 22. fxe5 {[%emt 0:01:13]} Qe7 {[%emt 0:01:18]} 23. g5 {[%emt 0:03:17]} Nc7 {[%emt 0:01:32]} 24. Rhf1 {[%emt 0:00:49]} Rf8 {[%emt 0:01:06]} 25. Rd2 {[%emt 0:04:23]} Nd5 {[%emt 0:01:38]} 26. Rdf2 {[%emt 0:00:34]} Qe8 {[%emt 0:00:11]} 27. h4 {[%emt 0:00:46]} Ne7 {[%emt 0:00:30]} 28. Rxf7 {[%emt 0:02:56]} Ng6 {[%emt 0:03:10]} 29. Qxb7# {[%emt 0:00:05]} 1-0